Cogmind - Beta 11.1 @@@ ROGUE MODE // 2022.07.23 @ 21:22:48 Player: tkc Result: Destroyed by D-53 Grenadier with Mini Grenade Launcher Performance ------------- Evolutions (0) 0 Regions Visited (2) 400 Robots Destroyed (34) 170 Value Destroyed (623) 623 Prototype IDs (0) 0 Alien Tech Used (0) 0 Bonus (0) 0 TOTAL SCORE: 1193 Bonus ------- None Cogmind --------- Core Integrity 0/250 Matter 221/300 Energy 65/100 System Corruption 7% Temperature Cool (0) Movement Core (550) Ox10 Location -10/Mines Parts ------- > --- POWER (1) -------- (None) > --- PROPULSION (2) --- (None) > --- UTILITY (2) ------ Small Storage Unit Large Storage Unit > --- WEAPON (2) ------- Improved Light Cannon Improved Light Cannon > --- INVENTORY (15) --- Light Ion Engine Light Ion Engine Light Ion Engine Light Treads Wheel Wheel Medium Matter Pod (100) Light Assault Rifle Autogun Autogun Improved Light Cannon Improved Light Cannon Mining Laser Peak State ------------ > --- POWER ------------ Light Ion Engine > --- PROPULSION ------- Light Treads Wheel > --- UTILITY ---------- Large Storage Unit Improved Terrain Scanner > --- WEAPON ----------- EM Pulse Gun Assault Rifle > --- INVENTORY -------- Light Ion Engine Light Ion Engine Light Treads Wheel Wheel Small Storage Unit Medium Matter Pod EM Pulse Gun Grenade Launcher Mining Laser [Rating: 10] Favorites ----------- Power Light Ion Engine Engine Light Ion Engine Propulsion Wheel Treads Light Treads Wheel Wheel Utility Large Storage Unit Device Improved Terrain Scanner Storage Large Storage Unit Weapon EM Pulse Gun Energy Gun EM Pulse Gun Ballistic Gun Assault Rifle Ballistic Cannon Improved Light Cannon Launcher Grenade Launcher Special Weapon Mining Laser Build | -11 -10 -10 ------- Run | Scr Mat Min Slots Evolved . | . . . Power . | . . . Propulsion . | . . . Utility . | . . . Weapon . | . . . Parts Attached 37 | 9 23 5 Power 3 | 1 2 . Engine 3 | 1 2 . Core . | . . . Reactor . | . . . Propulsion 9 | 2 6 1 Treads 5 | 1 4 . Leg . | . . . Wheel 4 | 1 2 1 Hover . | . . . Flight . | . . . Utility 4 | 2 2 . Device 1 | 1 . . Storage 3 | 1 2 . Processor . | . . . Hackware . | . . . Protection . | . . . Artifact . | . . . Weapon 21 | 4 13 4 Energy Gun 9 | 2 7 . Energy Cannon . | . . . Ballistic Gun 2 | 2 . . Ballistic Cannon 6 | . 3 3 Launcher 1 | . . 1 Special Weapon 3 | . 3 . Impact Weapon . | . . . Slashing Weapon . | . . . Piercing Weapon . | . . . Special Melee Weapon . | . . . Unidentified Prototypes . | . . . Parts Lost 9 | . 4 5 Power 1 | . . 1 Propulsion 4 | . 1 3 Utility 1 | . 1 . Weapon 3 | . 2 1 Highest Loss Streak 4 | . 2 4 To Critical Strikes . | . . . Average Slot Usage (%) 97 | . 98 96 Engine 13 | . 14 13 Treads 12 | . 12 13 Wheel 14 | . 15 12 Device 2 | . 2 . Storage 25 | . 25 28 Energy Gun 14 | . 17 . Ballistic Cannon 9 | . 6 22 Naked Turns . | . . . Heaviest Build 36 | 13 36 36 Greatest Support 20 | 20 20 20 Greatest Overweight (x) 9 | 1 9 3 Average Overweight (x) 2 | . 2 2 Largest Inventory Capacity 15 | 8 15 15 Average Capacity 14 | 7 14 15 Most Carried 15 | 8 15 15 Average Carried 12 | 4 13 14 Final Capacity 15 | 8 15 15 Final Carried 15 | 8 15 13 Class Distribution -------------------- 100% | Mutant Dominant Class ---------------- Mutant | -10/Materials Mutant | -10/Mines Resources | -11 -10 -10 ----------- Run | Scr Mat Min Matter Collected 737 | 322 373 42 Remotely . | . . . Salvage Created 1025 | 189 732 104 Parts 71 | 18 48 5 Haulers Intercepted 2 | . 2 . Recyclers Shooed . | . . . Parts Field Recycled . | . . . Retrieved Matter . | . . . Parts Self-Destructed . | . . . Prevented . | . . . Kills | -11 -10 -10 ------- Run | Scr Mat Min Combat Hostiles Destroyed 19 | . 14 5 Guns 9 | . 9 . Cannons 5 | . 3 2 AOE 5 | . 2 3 Classes Destroyed 7 | 3 4 . Worker 5 | 2 3 . Tunneler 5 | 4 1 . Hauler 2 | . 2 . Recycler 1 | 1 . . Watcher 2 | . 2 . Swarmer 6 | . 3 3 Grunt 13 | . 11 2 Best Kill Streak 6 | 4 6 3 Combat Bots Only 5 | . 5 3 Max Kills in Single Turn 2 | 1 2 2 Gunslinging . | . . . Exploded 2 | . 2 2 Melee . | . . . Uniques/NPCs Destroyed . | . . . Combat | -11 -10 -10 -------- Run | Scr Mat Min Damage Taken 1379 | 36 694 649 Core 269 | . 130 139 Absorbed by Shields . | . . . Core Remaining (%) 100 | 100 . . Volleys Fired 102 | 24 67 11 Largest 2 | 2 2 2 Hottest 100 | 80 100 78 Shots Fired 152 | 29 108 15 Gun 125 | 29 96 . Cannon 17 | . 8 9 Launcher 6 | . . 6 Special 4 | . 4 . Kinetic 36 | 19 8 9 Thermal 58 | . 58 . Explosive 6 | . . 6 Electromagnetic 52 | 10 42 . Robot Hit Streak 8 | 5 8 5 Robot Miss Streak 6 | 3 6 2 Penetration Max . | . . . Secondary Targets . | . . . Shots Hit Robots 88 | 19 61 8 Core Hits 57 | 8 34 15 Critical Kills . | . . . Critical Parts Destroyed . | . . . Critical Strikes 2 | . 2 . Burn 2 | . 2 . Melee Attacks . | . . . Impact . | . . . Slashing . | . . . Piercing . | . . . Sneak Attacks . | . . . Combat Hostiles . | . . . Follow-up Attacks . | . . . Damage Inflicted 1466 | 274 891 301 Guns 987 | 250 737 . Cannons 199 | . 112 87 Explosions 280 | 24 42 214 Melee . | . . . Ramming . | . . . Kinetic 367 | 168 112 87 Thermal 482 | 24 458 . Explosive 214 | . . 214 Electromagnetic 403 | 82 321 . Impact . | . . . Slashing . | . . . Piercing . | . . . Highest Corruption 7 | . 7 7 Average Corruption 3 | . 1 7 Corruption Purged . | . . . Corruption Blocked . | . . . Effects 16 | . 10 6 Message Errors 4 | . 3 1 Matter Fused 1 | . 1 . Heat Flow Errors 3 | . 2 1 Energy Discharges 1 | . . 1 Parts Rejected 1 | . 1 . Data Loss (minor) 1 | . 1 . Data Loss (major) 1 | . . 1 Misfires 2 | . 1 1 Alerts 1 | . 1 . Weapon Failures 1 | . . 1 Overload Shots . | . . . Overflow Damage . | . . . Projectiles . | . . . Explosions . | . . . Melee . | . . . Knockbacks 1 | . . 1 Impact . | . . . Kinetic 1 | . . 1 Secondary . | . . . Self-Inflicted Damage 85 | 36 27 22 Shots 4 | 1 1 2 Rammed . | . . . Targets Rammed . | . . . Kicked . | . . . Crushed . | . . . Highest Temperature 300 | 54 300 257 Average Temperature 81 | 27 78 149 Received Heat Transfer 366 | . 324 42 Effects 5 | . 5 . Energy Bleed 1 | . 1 . Interference 3 | . 3 . Short Circuit 1 | . 1 . Siege Activations . | . . . Robots Corrupted . | . . . Combat Hostiles . | . . . Parts Fried . | . . . Impact Corruptions . | . . . Robots Melted . | . . . Combat Hostiles . | . . . Parts Melted 3 | . 3 . Heat Transferred 1351 | . 1351 . Parts Sabotaged . | . . . Parts Stolen . | . . . Parts Stripped . | . . . Power Chain Reactions 2 | 1 1 . Missiles Intercepted . | . . . Alert | -11 -10 -10 ------- Run | Scr Mat Min Peak Influence 250 | 35 250 226 Initial 68 | . 22 68 Average 110 | 19 122 140 Maximum Alert Level 1 | . 1 1 Low Security (%) 99 | 100 99 96 Level 1 . | . . 3 Level 2 . | . . . Level 3 . | . . . Level 4 . | . . . Level 5 . | . . . High Security . | . . . Max Security . | . . . Squads Dispatched 3 | . 3 . Investigation 3 | . 3 . Extermination . | . . . Reinforcement . | . . . Assault . | . . . Garrison . | . . . Intercept . | . . . Searches Triggered . | . . . Construction Impeded . | . . . Haulers Reinforced . | . . . Active Scanning Responses . | . . . Cargo Convoy Interrupts . | . . . Stealth | -11 -10 -10 --------- Run | Scr Mat Min Distress Signals . | . . . Communications Jammed . | . . . Distress Signals . | . . . Times Spotted 32 | . 25 7 Peak Tracking Total 5 | . 5 3 Tactical Retreats 1 | . 1 . Traps | -11 -10 -10 ------- Run | Scr Mat Min Traps Triggered 7 | . 7 . Indirectly . | . . . Trap Hack Attempts . | . . . Triggered . | . . . Disarmed . | . . . Reprogrammed . | . . . Reused . | . . . Traps Extracted . | . . . Installed . | . . . Triggered . | . . . Machines | -11 -10 -10 ---------- Run | Scr Mat Min Machines Disabled . | . . . Max in Single Turn . | . . . Machines Sabotaged . | . . . Garrisons Compromised . | . . . Overloaded Fab Kills . | . . . Hacking | -11 -10 -10 --------- Run | Scr Mat Min Machines Accessed 8 | . 8 . Terminals 6 | . 6 . Fabricators . | . . . Repair Stations . | . . . Recycling Units 2 | . 2 . Scanalyzers . | . . . Garrison Access . | . . . Total Hacks 21 | . 21 . Successful 11 | . 11 . Failed 9 | . 9 . Catastrophic 1 | . 1 . Database Lockouts 1 | . 1 . Manual 19 | . 19 . Terminals 19 | . 19 . Fabricators . | . . . Repair Stations . | . . . Recycling Units 2 | . 2 . Scanalyzers . | . . . Garrison Access . | . . . Terminal Hacks 5 | . 5 . Part Schematic 1 | . 1 . Robot Analysis 1 | . 1 . Level Access Points 1 | . 1 . Terminal Index 1 | . 1 . Zone Layout 1 | . 1 . Fabricator Hacks . | . . . Repair Station Hacks . | . . . Recycling Unit Hacks 2 | . 2 . Report Inventory 2 | . 2 . Scanalyzer . | . . . Garrison Access Hacks . | . . . Unauthorized Hacks 4 | . 4 . Terminals 4 | . 4 . Botnet 2 | . 2 . Operators 2 | . 2 . Fabricators . | . . . Repair Stations . | . . . Recycling Units . | . . . Scanalyzers . | . . . Garrison Access . | . . . Data Cores Recovered . | . . . Used . | . . . Hacking Detections 6 | . 6 . Full Trace Events 1 | . 1 . Feedback Events 1 | . 1 . Corruption 1 | . 1 . Feedback Blocked . | . . . Robot Schematics Acquired . | . . . Robots Built . | . . . Authchips . | . . . Time . | . . . Total Robot Build Rating . | . . . Part Schematics Acquired 1 | . 1 . Parts Built . | . . . Authchips . | . . . Time . | . . . Total Part Build Rating . | . . . Parts Repaired . | . . . Time . | . . . Parts Recycled . | . . . Recycled Matter . | . . . Retrieved Matter . | . . . Retrieved Components . | . . . Parts Scanalyzed . | . . . Part Schematics Acquired . | . . . Parts Damaged . | . . . Bothacking | -11 -10 -10 ------------ Run | Scr Mat Min Used RIF Installer . | . . . Robots Hacked . | . . . Non-combat . | . . . Combat . | . . . Robot Hacks Applied . | . . . Relay Couplers Released . | . . . Fabnet Peak Effective % . | . . . Robots Rewired . | . . . Allies Hacked . | . . . Hacks Repelled . | . . . Allies | -11 -10 -10 -------- Run | Scr Mat Min Total Allies . | . . . Largest Group . | . . . Highest-Rated Group . | . . . Highest-Rated Ally . | . . . Total Orders . | . . . Ally Attacks . | . . . Total Damage . | . . . Kills . | . . . Allies Corrupted . | . . . Allies Melted . | . . . Intel | -11 -10 -10 ------- Run | Scr Mat Min Robot Analysis Total 1 | . 1 . Derelict Logs Recovered . | . . . Drone Launches . | . . . Drone Recoveries . | . . . Exploration | -11 -10 -10 ------------- Run | Scr Mat Min Turns Passed 1579 | 217 1132 230 Spaces Moved 909 | 91 668 150 Core 4 | 3 1 . Treads 176 | 86 82 8 Legs . | . . . Wheels 729 | 2 585 142 Hover . | . . . Flight . | . . . Fastest Speed 50 | 50 95 125 Average Speed 135 | 155 133 131 Slowest Speed 500 | 160 500 240 Overloaded Moves . | . . . Propulsion Burnouts . | . . . Robots Hopped . | . . . Cave-ins Triggered . | . . . Exploration Rate (%) 45 | 3 98 36 Regions Visited 2 Branch Regions 1 Pre-discovered Areas . | . . . Known Exits Taken . | . . . Unknown Exits Taken 2 | 1 1 . Scrap Searched . | . . . Spaces Dug 4 | . 4 . Terrain Destroyed 40 | 5 6 29 Melee . | . . . Projectile 4 | . 4 . AOE 36 | 5 2 29 Terrain Rammed . | . . . Walls Destroyed . | . . . Machines Disabled . | . . . Actions | -11 -10 -10 --------- Run | Scr Mat Min Total 1088 | 133 789 166 Wait 8 | . 8 . Move 907 | 90 667 150 Hop . | . . . Pick Up 23 | 9 14 . Fast Attach 9 | 7 2 . Attach 8 | . 6 2 Detach 2 | . 2 . Swap 20 | 2 15 3 Drop 9 | 1 8 . Fire 102 | 24 67 11 Melee . | . . . Ram . | . . . Kick . | . . . Crush . | . . . Escape Stasis . | . . . Rewire . | . . . Trap . | . . . Miscellaneous . | . . . Route ------- -11/Scrapyard -10/Materials (discovered 4 exits: *Mat x3 / [*Min]) -10/Mines (discovered 1 exit: *Mat) History --------- Turn | Location | Event 28 | -11/Scrapyard | Discovered new exit (range 16) 218 | -11/Scrapyard | Entered Materials 303 | -10/Materials | Build established: Mutant 313 | -10/Materials | Discovered new exit (range 16) 655 | -10/Materials | Discovered new exit (range 11) 809 | -10/Materials | Discovered new exit (range 12) 858 | -10/Materials | Identified exit to Materials 978 | -10/Materials | Core integrity fell below 50% 1146 | -10/Materials | Central database locked down 1350 | -10/Materials | Entered Mines 1391 | -10/Mines | Discovered exit to Materials (range 14) 1408 | -10/Mines | Met a Derelict bent on vengeance 1546 | -10/Mines | Assembled infested the area 1579 | -10/Mines | Core integrity fell below 20% 1580 | -10/Mines | Destroyed by D-53 Grenadier with Mini Grenade Launcher Last Messages --------------- 01384_ R-06 Scavenger collects Particle Gun. 01391_ EXIT=FOUND: MATERIALS 01392_ System corrupted: Substantial component data lost. 01413_ System corrupted: FCS attempts to trigger Imp. Light Cannon. 01413_ System corrupted: Imp. Light Cannon misfires. 01458_ System corrupted: Energy discharge (-45). 01488_ S-10 Pest destroyed. 01513_ Acquired 3 matter. 01521_ The unstable cave ceiling collapses. 01546_ ALERT: Infestation in the mines, dispatching Demolisher response squad. 01554_ K7LXQGN5G8DY%0WR0ND8DGVEJZ2,IW|0 01568_ C-30 ARC bursts open, deploying its payload. 01568_ D-53 Grenadier unfolds itself. 01570_ Lgt. Ion Engine destroyed. 01571_ The unstable cave ceiling collapses. 01576_ Grenade Launcher destroyed. 01576_ Lgt. Treads destroyed. 01577_ The unstable cave ceiling collapses. 01580_ Wheel destroyed. Map ----- +----------------------------------------------------+ | ????# ## ###????###??????????????????????????? | | ##### ### ##### ##?????????????????????????? | | ## #?## ##????#???????????????????? | | ##?### """ ### ##??????????????????? | | #???## """ #??????????????????? | | #????## """ ????????????????????? | | ## ##????## ## ???????????????????????? | | ######????## ##?? ???????????????????????? | | # #?????????# #??? ???????????????????????? | | # #?????????# ##??? ???????????????????????? | | # #?????????# ###???# #??????????????????????? | | # #?????????## ##?????# #??????????????????????? | | # #??????????# ###??????# #??????????????????????? | | # #??????????# #????????# #??????????????????????? | | # #####??????# #????????# ????? ????????????????? | | # #??????# #######??# #???"""????????????????? | | ##### #??????# #??# #??"""" ???????????????? | | ????# #??????####### #### ## """" #????????????? | | ????# ########?????# #????????????? | | ????# #??###### ### #?????????????? | | ????# ########????????### ###????###?????????????? | | ???## #??????????????## ##???????????????????? | | ???# #???????# ###### ##??????????????????? | | ???# ##???????# #??????????????????? | | ???# #????????####### #??????????????????? | | ???# #??????????????# @ #??????????????????? | | ???# #?????????????# #??????????????????? | | ???# #????????????# # #??????????????????? | | ???# #????????????### d ##??????????????????? | | ???# #????????????? d ##???????????????????? | | ???# #???????????? ##????????????????????? | | ???# #???????????### # #?????????????????????? | | ???# #?????????????# # #?????????????????????? | | ???# #?????????????#### ####?????????????????????? | | ???# #####????????????##?????????????????????????? | | ???# ## ???????????????????????????????????????? | | ???# ## #???????????????????????????????????????? | | ???# ## #???????????????????????????????????????? | | ???# ## #???????????????????????????????????????? | | ???# ## #???????????????????????????????????????? | | ???# ## #???????????????????????????????????????? | | ???# ## #???????????????????????????????????????? | | ???# ## ############????????????????????????????? | | ??## #????????????????????????????? | | ### #########????????????????????? | | # < ####### ## % #????????????????????? | | #?????# % #????????????????????? | | ##?????# %= #????????????????????? | | # ##??????#####% #????????????????????? | | ## ##???????????#! #????????????????????? | +----------------------------------------------------+ Best States ------------- Heat Dissipation 25 Energy Generation 10 Energy Capacity 125 Matter Stores 300 Matter Capacity 300 Sight Range 16 Terrain Scan Range 16 Terrain Scan Density 10 Evasion (%) 44 Recoil Reduction 1 Item Schematics ----------------- Core Shielding | -10/Materials | Hacked Robot Schematics ------------------ None Fabricated ------------ Nothing Alien Tech Used ----------------- None Achievements -------------- None Challenges ------------ None Game ------ Seed VisualFlyingPit Manual? 0 Play Time 00:28:41 Cumulative 90.8 hours Start 2022.07.23 @ 19:52:45 End 2022.07.23 @ 21:22:48 Sessions 3 Manual Loads 0 Difficulty Rogue Special Mode None Game No. 59 Rogue 58 Adventurer 0 Explorer 1 Win Type - Total 0 Types 0/0/0/0/0/0/0/0/0 Lore% 22 Gallery% 36 Achievement% 26 Wizard Run 0 Options --------- ASCII 0 Keyboard 0 Movement Mouse Keybinds 0 Fullscreen 1 Font 36/TerminusBold Map View 76x50 Tactical HUD 1 Map Filters NONE Filters NONE Steam 1 RUN: 3a962765-f6d7-460f-ae3e-9c76bcd8199a